bitfinex/quotes_SOLUSD_20240808
["timestamp","ask_amount","ask_price","bid_price","bid_amount"]
[1723121891230,45.29770826,155.94,155.88,16.0373]
[1723121891530,38.68,155.99,155.81,34.10152725]
[1723121891729,45.091,155.98,155.92,22.4465]
[1723121891942,6.4115,155.97,155.92,22.4465]
[1723121892143,45.0913,155.98,155.92,22.4465]
[1723121892463,6.4123,155.95,155.89,16.0367]
[1723121892745,45.0919,155.96,155.9,6.4142]
[1723121892960,6.62246647,155.99,155.92,16.0332]
[1723121892961,45.30246647,155.99,155.92,16.0332]
[1723121893155,19.671,156.08,155.92,16.0332]
[1723121893156,45.0916,155.97,155.92,16.0332]
[1723121893428,43.73,156.02,155.82,20.0]
[1723121893429,6.4126,155.95,155.89,22.4512]
[1723121893628,38.68,155.95,155.89,16.0366]
[1723121893946,43.73,155.98,155.89,28.9002]
[1723121893947,82.41,155.98,155.89,28.9002]
[1723121894124,82.41,155.98,155.91,16.0343]
[1723121894332,45.0915,155.97,155.91,16.0343]
[1723121894551,43.73,155.98,155.91,16.0343]
[1723121894755,43.73,156.02,155.91,16.0343]
[1723121894940,45.0907,155.99,155.93,6.413]
[1723121895143,45.0907,155.99,155.94,6.4126]
[1723121895353,38.68,155.99,155.94,6.4126]
[1723121895664,38.68,155.99,155.93,22.445]
[1723121895860,6.4119,155.96,155.9,22.4495]
[1723121896163,45.0915,155.97,155.91,6.4136]
[1723121896330,51.71303659,156.0,155.94,6.4127]
[1723121896541,45.0907,155.99,155.93,6.413]
[1723121896858,38.68,155.98,155.93,6.413]
[1723121897043,38.68,155.98,155.92,16.0333]
[1723121897044,45.0,155.97,155.92,16.0333]
[1723121897428,38.68,156.01,155.96,6.4118]
[1723121897626,38.68,156.01,155.94,16.0312]
[1723121897843,45.0902,156.0,155.95,6.412]
[1723121898052,6.4107,155.99,155.94,22.4438]
[1723121898425,6.4107,155.99,155.94,16.0312]
[1723121898847,45.0903,156.0,155.94,22.4438]
[1723121899053,38.68,155.98,155.89,12.8636]
[1723121899261,45.17,155.97,155.93,6.4131]
[1723121899431,0.17,155.96,155.92,6.4134]
[1723121899637,38.68,155.94,155.84,12.0843]
[1723121899830,6.4154,155.88,155.82,6.4175]
[1723121900037,0.17,155.87,155.8,16.0452]
[1723121900238,45.34,155.87,155.83,6.4171]
[1723121900449,45.34,155.87,155.86,6.416]
[1723121900649,51.7559,155.87,155.79,12.0843]
[1723121900854,45.34,155.87,155.81,16.0447]
[1723121901058,45.34,155.87,155.79,12.0843]
[1723121901234,30.0,155.86,155.85,22.4567]
[1723121901831,38.68,155.93,155.79,12.0843]
[1723121902062,6.4118,155.97,155.91,6.4139]
[1723121902244,6.4118,155.97,155.8,41.28318083]
[1723121902446,43.73,156.0,155.9,6.4142]
[1723121902447,6.4122,155.96,155.9,6.4142]
[1723121902648,38.68,155.94,155.88,16.0376]
[1723121902960,45.094,155.91,155.85,16.0405]
[1723121903138,45.094,155.91,155.85,22.4568]
[1723121903651,45.0947,155.89,155.83,6.4171]
[1723121903862,38.68,155.87,155.83,6.4171]
[1723121904038,84.02,155.86,155.82,22.461]
[1723121904241,45.0,155.85,155.82,22.461]
[1723121904540,0.17,155.84,155.83,6.4172]
[1723121904736,0.17,155.84,155.82,22.461]
[1723121904973,0.17,155.84,155.79,12.0843]
[1723121904974,0.17,155.84,155.8,6.4181]
[1723121905337,0.17,155.84,155.81,6.418]
[1723121905555,0.17,155.84,155.78,6.4192]
[1723121905556,38.85,155.84,155.78,6.4192]
[1723121905754,45.17,155.83,155.81,6.418]
[1723121905958,45.17,155.83,155.82,6.4176]
[1723121905959,0.17,155.83,155.82,6.4176]
[1723121906940,0.17,155.83,155.79,6.4187]
[1723121907173,38.68,155.81,155.66,20.0]
[1723121907362,38.68,155.79,155.71,16.0554]
[1723121907568,45.1005,155.76,155.7,6.4225]
[1723121907774,84.02,155.75,155.71,6.4221]
[1723121908159,45.34,155.75,155.67,13.0376]
[1723121908343,0.34,155.75,155.74,6.4209]
[1723121910258,30.0,155.82,155.78,6.4191]
[1723121910476,43.73,155.86,155.68,1.28416753]
[1723121910477,38.68,155.83,155.79,6.4186]
[1723121910764,38.68,155.83,155.77,22.4684]
[1723121910961,38.68,155.83,155.77,16.0489]
[1723121911170,45.0973,155.83,155.77,16.0489]
[1723121911467,38.68,155.83,155.78,6.419]
[1723121911665,38.68,155.79,155.67,13.0376]
[1723121911878,38.68,155.75,155.57,40.0]
[1723121912180,38.68,155.75,155.72,6.4217]
[1723121912342,38.35,155.79,155.74,6.4206]
[1723121912665,45.17,155.78,155.76,6.4199]
[1723121912861,43.73,155.84,155.65,1.2843242]
[1723121913054,6.4165,155.85,155.79,6.4188]
[1723121913250,45.0968,155.84,155.79,6.4188]
[1723121913551,38.68,155.83,155.78,16.0477]
[1723121913872,6.4176,155.82,155.78,16.0477]
[1723121914166,38.68,155.81,155.78,6.4192]
[1723121914355,38.68,155.81,155.77,6.4196]
[1723121914772,45.0,155.8,155.78,6.4191]
[1723121915065,0.17,155.79,155.77,22.4684]
[1723121915241,0.17,155.79,155.77,16.0488]
[1723121915639,0.17,155.79,155.78,6.4193]
[1723121915843,6.62585379,155.86,155.79,16.0462]
[1723121916066,45.30585379,155.86,155.81,6.418]
[1723121916251,38.68,155.87,155.82,6.4176]
[1723121916444,38.68,155.83,155.78,22.4669]
[1723121916653,38.68,155.81,155.73,12.9649]
[1723121916852,38.68,155.79,155.65,13.1271]
[1723121917380,45.34,155.78,155.65,13.1271]
[1723121917552,45.34,155.78,155.77,6.4196]
[1723121918173,0.17,155.78,155.77,6.4196]
[1723121918354,43.73,155.84,155.65,13.1271]
[1723121918565,45.17,155.83,155.66,65.34]
[1723121919062,45.0,155.83,155.66,105.34]
[1723121919378,6.4146,155.9,155.85,16.041]
[1723121919588,30.8078,155.92,155.84,6.4167]
[1723121919747,6.414,155.91,155.85,6.4163]
[1723121919954,6.414,155.91,155.86,6.4159]
[1723121920167,38.68,155.9,155.86,6.4159]
[1723121920364,38.68,155.91,155.88,6.4151]
[1723121920972,31.9775,155.98,155.79,1.28313307]
[1723121921180,38.68,155.95,155.9,6.4141]
[1723121921865,38.68,155.95,155.88,16.0374]
[1723121922069,6.4135,155.92,155.85,16.0406]
[1723121922278,45.0935,155.92,155.85,16.0406]
[1723121922582,45.0928,155.94,155.88,6.4151]
[1723121922786,45.0928,155.94,155.79,20.0]
[1723121922787,50.1419,155.96,155.89,16.0363]
[1723121923075,56.1799,156.0,155.89,16.0363]
[1723121923376,56.1799,156.0,155.91,6.4138]
[1723121923579,56.1799,156.0,155.89,22.451]
[1723121923580,38.68,155.94,155.89,22.451]
[1723121923748,45.0927,155.94,155.89,22.451]
[1723121924079,38.68,155.94,155.9,6.4143]
[1723121924275,45.17,155.93,155.9,6.4143]
[1723121924580,0.17,155.92,155.9,6.4143]
[1723121924771,0.17,155.92,155.91,6.4139]
[1723121924974,0.17,155.92,155.89,16.0363]
[1723121925486,0.17,155.92,155.9,6.4142]
[1723121926877,0.17,155.92,155.87,6.4153]
[1723121927070,45.0944,155.9,155.78,13.0804]
[1723121927256,45.34,155.89,155.85,6.4163]
[1723121927779,45.34,155.89,155.86,6.4159]
[1723121928102,84.02,155.89,155.85,16.0405]
[1723121928273,84.02,155.89,155.78,13.0804]
[1723121928274,84.02,155.89,155.84,6.4165]
[1723121928472,90.4348,155.89,155.82,16.0435]
[1723121928680,90.4348,155.89,155.83,6.4171]
[1723121928974,38.68,155.87,155.82,16.0435]
[1723121929179,84.02,155.86,155.83,6.4172]
[1723121929366,84.02,155.86,155.83,6.4171]
[1723121929567,45.34,155.86,155.85,6.4164]
[1723121929864,72.2282,155.94,155.88,6.4149]
[1723121930058,65.8152,155.94,155.89,6.4147]
[1723121930286,35.62,155.97,155.91,6.4135]
[1723121930457,35.62,155.97,155.79,20.0]
[1723121930458,35.62,155.97,155.8,1.28292372]
[1723121930662,38.68,155.96,155.8,46.28292372]
[1723121930858,38.68,155.97,155.81,40.0]
[1723121931066,38.68,155.97,155.93,6.4128]
[1723121931293,38.68,155.97,155.92,16.0334]
[1723121931294,38.68,155.97,155.94,6.4126]
[1723121931478,38.68,155.97,155.93,6.4129]
[1723121931794,38.68,155.97,155.92,16.0334]
[1723121932085,45.0916,155.97,155.92,22.4469]
[1723121932306,38.68,156.0,155.94,22.4438]
[1723121932593,38.68,155.99,155.94,22.4438]
[1723121932971,45.0907,155.99,155.94,22.4438]
[1723121933284,38.68,155.99,155.94,22.4438]
[1723121933460,45.2916478,156.01,155.94,16.0312]
[1723121933664,6.4095,156.02,155.94,16.0312]
[1723121933882,6.4095,156.02,155.96,6.4117]
[1723121934067,0.8581843,156.03,155.97,6.4113]
[1723121934261,30.0,155.98,155.97,6.4113]
[1723121934662,38.68,155.98,155.84,13.0433]
[1723121934884,38.68,155.94,155.84,13.0433]
[1723121935098,38.68,155.92,155.79,13.0433]
[1723121935271,6.4149,155.89,155.79,13.0433]
[1723121935591,38.68,155.93,155.89,6.4144]
[1723121935775,0.34,155.92,155.91,6.4139]
[1723121935978,0.34,155.92,155.79,33.0433]
[1723121935979,0.17,155.92,155.79,33.0433]
[1723121936174,43.48,155.99,155.81,20.0]
[1723121936374,49.891,155.99,155.94,6.4126]
[1723121936583,43.48,155.99,155.94,6.4126]
[1723121936767,45.0902,156.0,155.93,16.0322]
[1723121936972,45.0907,155.99,155.94,6.4126]
[1723121937169,38.68,155.99,155.93,16.0322]
[1723121937380,0.8581843,156.03,155.92,12.0409]
[1723121937580,0.8581843,156.03,155.93,20.0]
[1723121937785,0.8581843,156.03,155.99,6.4103]
[1723121937967,0.8581843,156.03,155.93,20.0]
[1723121938168,0.8581843,156.03,156.02,6.4094]
[1723121938489,6.4097,156.02,155.96,6.4118]
[1723121938671,38.68,155.99,155.92,12.0409]
[1723121938867,6.4115,155.97,155.91,6.4139]
[1723121939091,38.68,155.98,155.93,6.4129]
[1723121939282,38.68,155.98,155.92,6.4134]
[1723121939482,38.85,155.97,155.91,6.4139]
[1723121939678,45.17,155.96,155.91,16.0341]
[1723121939889,0.17,155.95,155.94,6.4127]
[1723121940276,6.4094,156.02,155.96,6.4115]
[1723121940489,6.4105,156.0,155.95,16.03]
[1723121940791,45.0907,155.99,155.93,6.413]
[1723121940970,38.68,155.99,155.94,6.4126]
[1723121941292,0.8581843,156.03,155.86,1.28261027]
[1723121941480,0.8581843,156.03,156.0,6.4101]
[1723121941680,0.8581843,156.03,156.02,6.4094]
[1723121942384,0.8581843,156.03,156.01,16.0244]
[1723121942592,0.8581843,156.03,155.96,12.1835]
[1723121942897,39.5381843,156.03,155.98,6.4107]
[1723121943281,39.5381843,156.03,155.99,6.4106]
[1723121943595,0.8581843,156.03,155.96,12.1835]
[1723121943769,0.8581843,156.03,156.02,6.4094]
[1723121947170,0.8581843,156.03,156.01,6.4097]
[1723121947370,0.8581843,156.03,156.02,6.4094]
[1723121947786,0.8581843,156.03,155.93,1.14670705]
[1723121947787,1.0281843,156.03,155.9,43.7451]
[1723121947999,0.17,156.02,155.9,43.7451]
[1723121948184,0.17,156.02,156.01,6.4098]
[1723121948797,0.34,156.02,155.9,43.7451]
[1723121949188,0.34,156.02,155.98,6.4107]
[1723121949396,0.34,156.02,156.0,6.4099]
[1723121949570,0.8581843,156.03,156.0,6.4101]
[1723121949775,0.8581843,156.03,155.98,6.4107]
[1723121949994,0.8581843,156.03,155.9,43.7451]
[1723121950178,0.8581843,156.03,155.91,45.74650962]
[1723121950380,0.8581843,156.03,156.02,6.4094]
[1723121952294,1.0281843,156.03,156.02,6.4094]
[1723121952479,0.8581843,156.03,156.02,6.4094]
[1723121953716,0.8581843,156.03,156.02,26.4094]
[1723121954205,0.8581843,156.03,156.02,27.69091635]
[1723121954405,0.8581843,156.03,156.02,26.4094]
[1723121955282,0.8581843,156.03,156.02,27.69065422]
[1723121955478,38.68,156.14,156.02,27.69065422]
[1723121955693,96.30021273,156.17,156.11,6.4056]
[1723121955884,10.03761273,156.17,156.03,20.0]
[1723121956080,35.5,156.18,156.03,20.0]
[1723121956298,35.5,156.18,156.01,12.6543]
[1723121956299,48.5978664,156.18,156.12,6.4052]
[1723121956528,42.1946664,156.18,156.02,40.0]
[1723121956705,6.6946664,156.18,156.15,6.4037]
[1723121956878,30.0,156.16,156.14,6.4044]
[1723121957097,30.0,156.16,156.03,45.0]
[1723121957387,38.68,156.14,156.01,12.6543]
[1723121957589,6.4058,156.11,156.05,6.408]
[1723121957783,6.4058,156.11,156.06,6.4077]
[1723121957977,45.34,156.1,156.01,12.6543]
[1723121958193,0.34,156.1,156.01,12.6543]
[1723121958389,45.0,156.09,156.07,6.4072]
[1723121958610,0.34,156.1,156.07,6.4072]
[1723121958611,0.34,156.08,156.07,6.4072]
[1723121959288,0.34,156.08,156.06,6.4076]
[1723121959484,0.34,156.08,156.01,12.6543]
[1723121959708,0.34,156.08,156.01,6.4094]
[1723121959886,45.0873,156.07,156.01,6.4094]
[1723121960081,0.34,156.06,156.01,6.4094]
[1723121960279,45.34,156.06,156.05,6.4082]
[1723121960481,45.34,156.06,155.96,12.2855]
[1723121960695,306.7094,156.16,155.96,13.56758523]
[1723121960896,6.4081,156.06,155.96,12.2855]
[1723121961114,41.907,156.08,155.96,12.2855]
[1723121961287,74.18,156.08,156.03,6.4088]
[1723121961610,80.587,156.08,156.03,6.4088]
[1723121961790,74.18,156.08,156.04,6.4084]
[1723121962106,45.34,156.07,155.96,12.2855]
[1723121962286,90.4277,156.07,156.01,6.4097]
[1723121962476,84.02,156.07,155.97,20.0]
[1723121962685,84.02,156.07,156.02,6.4093]
[1723121962981,84.02,156.07,156.04,6.4082]
[1723121962982,45.34,156.07,156.04,6.4082]
[1723121963213,45.34,156.07,155.97,20.95415796]
[1723121963214,45.34,156.07,156.03,6.4089]
[1723121963415,84.02,156.07,156.02,6.4094]
[1723121963707,38.68,156.06,156.01,6.4097]
[1723121963880,45.34,156.05,156.01,6.4097]
[1723121964077,45.34,156.05,155.97,20.0]
[1723121964591,0.34,156.05,156.03,6.4089]
[1723121965102,35.5,156.07,155.97,20.0]
[1723121965405,38.68,156.09,156.06,6.4076]
[1723121965618,30.0,156.07,156.06,6.4076]
[1723121966110,38.68,156.09,156.06,6.4076]
[1723121966492,45.17,156.08,156.06,6.4076]
[1723121966689,51.0651,156.12,156.07,6.4073]
[1723121967004,38.68,156.12,156.08,6.4068]
[1723121967207,38.68,156.12,155.99,1.28146468]
[1723121967415,38.68,156.12,156.08,6.4066]
[1723121967708,6.406,156.11,156.05,6.408]
[1723121967911,38.68,156.11,156.05,6.408]
[1723121968113,45.0867,156.09,155.97,20.0]
[1723121968284,45.17,156.08,156.05,6.4079]
[1723121968603,0.17,156.07,156.05,6.4079]
[1723121968805,0.17,156.07,156.06,6.4077]
[1723121969197,0.17,156.07,156.05,6.4081]
[1723121969504,0.17,156.07,156.04,6.4083]
[1723121970028,0.17,156.07,155.96,12.2855]
[1723121970212,0.17,156.07,156.05,6.4081]
[1723121970411,0.17,156.07,155.96,13.56734885]
[1723121970608,0.17,156.07,156.05,6.4081]
[1723121970914,30.17,156.07,156.05,6.4081]
[1723121971114,45.17,156.06,156.05,6.4081]
[1723121971413,45.34,156.06,156.05,6.4081]
[1723121971910,45.34,156.06,156.05,6.4082]
[1723121972118,45.0853,156.12,156.07,6.407]
[1723121972293,38.68,156.12,156.08,6.4068]
[1723121972484,30.0,156.09,156.08,6.4068]
[1723121972687,47.7246,156.17,155.96,47.7855]
[1723121972914,6.406,156.11,156.05,6.408]
[1723121973086,35.5,156.11,155.96,12.2855]
[1723121973411,41.906,156.11,155.97,65.0]
[1723121973611,35.5,156.11,156.07,6.4073]
[1723121973821,35.5,156.11,155.97,20.0]
[1723121974003,38.85,156.1,156.05,6.408]
[1723121974203,83.68,156.09,156.05,6.408]
[1723121974405,0.17,156.08,155.97,20.0]
[1723121974714,0.34,156.08,156.05,6.4081]
[1723121974904,0.34,156.08,155.97,20.0]
[1723121976012,0.34,156.08,156.06,6.4073]
[1723121976308,30.34,156.08,156.07,6.4073]
[1723121976505,75.34,156.08,155.97,20.0]
[1723121976726,30.34,156.08,156.06,6.4075]
[1723121976898,45.0,156.07,156.06,6.4075]
[1723121977098,45.34,156.07,156.06,6.4075]
[1723121978499,48.9691,156.18,155.99,1.2815979]
[1723121978821,54.40949653,156.17,155.99,1.2815979]
[1723121979128,38.68,156.12,156.07,6.4072]
[1723121979428,38.68,156.1,156.06,6.4075]
[1723121980010,6.407,156.08,156.03,6.4089]
[1723121980211,45.34,156.07,156.06,6.4077]
[1723121980402,45.34,156.07,156.05,6.4078]
[1723121981031,45.34,156.07,155.96,12.2855]
[1723121981032,84.02,156.07,155.96,12.2855]
[1723121981234,84.02,156.07,155.91,1.28181264]
[1723121981235,38.68,156.03,156.0,6.4099]
[1723121981537,65.84,156.02,155.91,12.1943]
[1723121981716,45.0,156.01,155.98,6.411]
[1723121981911,0.34,156.0,155.98,6.411]
[1723121982406,0.34,156.0,155.99,6.4106]
[1723121983007,12.5139,156.06,155.91,12.1943]
[1723121983008,41.9065,156.1,156.04,6.4083]
[1723121983223,41.9065,156.1,156.04,6.4086]
[1723121983224,30.0,156.05,156.04,6.4086]
[1723121983418,30.0,156.05,155.93,1.2817827]
[1723121983603,30.0,156.05,155.93,1.28210439]
[1723121983813,30.0,156.05,156.04,6.4086]
[1723121984114,35.5,156.1,156.06,6.4077]
[1723121984316,35.5,156.1,155.93,21.28210439]
[1723121984517,45.0878,156.06,156.0,6.4101]
[1723121984718,38.68,156.04,155.91,12.1943]
[1723121984921,0.17,156.03,155.91,12.1943]
[1723121985129,84.02,156.03,155.99,6.4106]
[1723121985311,84.02,156.03,155.91,12.1943]
[1723121985312,38.68,156.01,155.91,12.1943]
[1723121985504,45.17,156.0,155.91,12.1943]
[1723121985712,0.17,155.99,155.91,12.1943]
[1723121985907,0.17,155.99,155.85,12.3583]
[1723121986399,38.68,155.98,155.85,12.3583]
[1723121986602,45.34,155.97,155.96,6.4119]
[1723121987428,45.34,155.97,155.85,12.3583]
[1723121987429,84.02,155.97,155.92,16.0337]
[1723121987602,90.4317,155.97,155.92,16.0337]
[1723121987808,45.0919,155.96,155.92,16.0337]
[1723121988110,80.84,155.95,155.91,6.4138]
[1723121988328,83.85,155.94,155.91,6.4138]
[1723121988503,0.17,155.93,155.89,16.0364]
[1723121988708,80.5937,155.92,155.86,16.0397]
[1723121988959,80.5948,155.89,155.83,6.4171]
[1723121989232,80.5948,155.89,155.83,22.4599]
[1723121989439,84.02,155.88,155.84,6.4168]
[1723121989608,84.02,155.88,155.85,6.4163]
[1723121989806,45.34,155.88,155.87,6.4156]
[1723121990005,0.34,155.88,155.87,6.4156]
[1723121991130,0.34,155.88,155.86,6.4159]
[1723121991637,0.34,155.88,155.87,6.4156]
[1723121991809,0.34,155.88,155.86,6.4159]
[1723121992440,0.34,155.87,155.86,6.4159]
[1723121992810,0.34,155.87,155.85,22.4565]
[1723121993139,0.17,155.87,155.83,6.4169]
[1723121993311,38.68,155.85,155.81,22.4619]
[1723121993608,45.34,155.84,155.81,22.4619]
[1723121994039,45.34,155.84,155.82,6.4176]
[1723121994539,45.34,155.84,155.81,16.0442]
[1723121994725,0.34,155.84,155.81,16.0442]
[1723121995113,0.34,155.84,155.83,6.4172]
[1723121995307,35.5,155.89,155.76,14.04414355]
[1723121995615,38.68,155.91,155.77,20.0]
[1723121995829,38.68,155.91,155.89,6.4144]
[1723121996044,38.68,155.94,155.88,16.0371]
[1723121996235,38.68,155.94,155.79,20.0]
[1723121996434,38.68,155.94,155.91,6.4138]
[1723121997130,38.68,155.96,155.91,16.0343]
[1723121997324,6.68666175,155.97,155.95,16.03]
[1723121997535,6.4112,155.98,155.87,13.0551]
[1723121997724,6.4112,155.98,155.91,16.0342]
[1723121997925,6.4108,155.99,155.91,16.0342]
[1723121998234,38.68,155.99,155.94,6.4123]
[1723121998536,38.68,155.99,155.93,22.4452]
[1723121998738,38.68,155.97,155.9,16.0355]
[1723121998910,74.18,155.97,155.9,16.0355]
[1723121999111,38.68,155.95,155.9,22.4495]
[1723121999331,38.68,155.93,155.82,12.8797]
[1723121999514,80.67,155.94,155.83,20.0]
[1723121999515,0.17,155.92,155.83,20.0]
[1723121999713,45.0,155.93,155.92,6.4132]
[1723121999923,84.02,155.93,155.89,6.4146]
[1723122000130,0.34,155.92,155.88,22.4525]
[1723122000436,0.34,155.92,155.88,16.0375]
[1723122000934,0.34,155.92,155.89,6.4147]
[1723122001138,0.34,155.92,155.9,6.4142]
[1723122001436,35.5,155.97,155.83,21.14237683]
[1723122001736,35.5,155.97,155.93,16.0327]
[1723122001940,6.68088934,156.0,155.99,6.4106]
[1723122002634,35.5,156.03,156.01,6.4098]
[1723122002939,35.5,156.08,155.88,20.0]
[1723122002940,35.5,156.08,156.03,6.4089]
[1723122003115,35.5,156.08,155.93,12.0196]
[1723122003116,35.5,156.08,156.07,6.4073]
[1723122003317,38.68,156.1,156.06,16.0188]
[1723122003743,38.68,156.07,155.94,1.15846751]
[1723122003918,38.68,156.03,155.94,20.0]
[1723122004116,38.68,156.03,155.98,6.411]
[1723122004321,45.089,156.03,155.98,6.4109]
[1723122004625,38.68,156.01,155.87,12.0002]
[1723122004847,84.02,156.0,155.87,12.0002]
[1723122005346,84.02,156.0,155.95,6.4119]
[1723122005518,84.02,156.0,155.88,1.28257941]
[1723122005721,38.68,155.94,155.85,32.2487]
[1723122005921,38.68,155.92,155.86,16.04]
[1723122006144,0.34,155.91,155.89,6.4146]
[1723122006340,0.34,155.91,155.9,6.4143]
[1723122007429,0.34,155.91,155.89,6.4147]
[1723122007631,0.34,155.91,155.85,16.0406]
[1723122007833,0.17,155.9,155.87,6.4152]
[1723122008021,45.34,155.92,155.91,6.4139]
[1723122008219,45.17,155.92,155.91,6.4139]
[1723122008420,0.17,155.92,155.91,6.4139]
[1723122008649,43.44,156.0,155.97,6.4114]
[1723122008948,63.0069,156.04,155.83,41.28295256]
[1723122009124,19.5669,156.04,155.98,6.4109]
[1723122009322,31.0357,156.06,156.0,6.4102]
[1723122009633,29.93483974,156.11,156.05,6.4078]
[1723122009818,29.93483974,156.11,156.03,6.4089]
[1723122009819,6.4066,156.09,156.03,6.4089]
[1723122010016,6.4063,156.1,156.04,6.4083]
[1723122010446,38.68,156.08,156.03,22.4308]
[1723122010623,38.68,156.07,156.03,16.0219]
[1723122010822,18.75465569,156.11,156.03,16.0219]
[1723122010823,6.67045569,156.11,156.03,16.0219]
[1723122011036,6.67045569,156.11,155.93,1.28195276]
[1723122011322,13.07645569,156.11,156.05,6.4081]
[1723122011528,38.68,156.1,155.93,1.28195276]
[1723122011836,38.68,156.08,156.03,6.4089]
[1723122012141,38.68,156.01,155.95,6.4119]
[1723122012345,38.68,156.01,155.91,12.8311]
[1723122012648,38.68,156.01,155.84,20.0]
[1723122012649,38.68,155.98,155.93,6.413]
[1723122012850,45.17,155.97,155.85,12.5368]
[1723122013146,45.17,155.97,155.96,6.4119]
[1723122013322,0.34,155.97,155.96,6.4119]
[1723122013520,12.3765,156.07,155.87,20.0]
[1723122013741,76.5015,156.08,156.02,6.4093]
[1723122013742,82.9086,156.08,156.02,6.4093]
[1723122014046,45.21309748,156.07,156.05,6.4081]
[1723122014348,44.9465,156.09,156.04,6.4085]
[1723122014847,51.62390818,156.09,156.03,22.4306]
[1723122015241,38.54,156.08,156.03,22.4306]
[1723122015549,32.1736,156.15,156.08,6.4066]
[1723122015751,6.4046,156.14,156.08,6.4066]
[1723122015949,6.4046,156.14,156.09,6.4065]
[1723122016132,6.4042,156.15,156.09,6.4065]
[1723122016332,50.11596441,156.16,155.97,34.26088365]
[1723122016544,6.67596441,156.16,155.98,85.0]
[1723122016731,6.67596441,156.16,156.11,6.4054]
[1723122016925,6.67596441,156.16,155.99,1.6212024]
[1723122017225,6.67596441,156.16,155.99,1.2812024]
[1723122017424,13.07966441,156.16,156.1,6.4059]
[1723122017627,13.07966441,156.16,155.98,66.28133793]
[1723122017628,44.9459,156.11,155.98,66.28133793]
[1723122017838,38.54,156.11,155.98,65.0]
[1723122018048,6.4049,156.13,156.08,6.4068]
[1723122018244,6.4046,156.14,156.08,6.4068]
[1723122018446,43.44,156.15,156.11,6.4057]
[1723122018447,0.17,156.13,156.11,6.4057]
[1723122018635,43.44,156.15,155.99,1.28163693]
[1723122018636,0.17,156.14,155.99,1.28163693]
[1723122019242,6.67596441,156.16,155.99,21.28163693]
[1723122019449,6.67596441,156.16,156.13,6.4047]
[1723122019652,38.54,156.18,156.13,6.4048]
[1723122019855,50.9839404,156.19,156.08,12.4557]
[1723122020040,7.5439404,156.19,156.09,20.0]
[1723122020351,0.8581843,156.19,156.15,6.404]
[1723122020523,0.8581843,156.19,156.16,6.4035]
[1723122020727,0.8581843,156.19,156.17,6.4032]
[1723122021249,0.8581843,156.19,156.18,6.4028]
[1723122025651,8.43e-05,156.19,156.18,83.6375]
[1723122025862,8.43e-05,156.19,156.18,38.6375]
[1723122026960,8.43e-05,156.19,156.17,6.4032]
[1723122027256,8.43e-05,156.19,156.18,6.4028]
[1723122027450,8.43e-05,156.19,156.18,26.4028]
[1723122028653,6.398,156.3,156.18,65.0]
[1723122028842,81.98,156.32,156.19,20.0]